bitfinex/quotes_SOLUSD_20220228
["timestamp","ask_amount","ask_price","bid_price","bid_amount"]
[1646078894028,105.27887409,96.356,96.261,104.0]
[1646078894232,1.63418264,96.355,96.261,104.0]
[1646078894428,103.84232454,96.356,96.261,104.0]
[1646078894628,103.84232454,96.356,96.263,104.0]
[1646078894828,1.37810718,96.355,96.262,39.04941975]
[1646078895028,1.37810718,96.355,96.264,2.74678921]
[1646078895429,0.87810718,96.355,96.264,2.74678921]
[1646078896628,20.41757543,96.354,96.244,2.74678921]
[1646078896831,1.40188373,96.353,96.24,12.46]
[1646078897328,123.77868506,96.352,96.24,12.46]
[1646078897529,1.67070754,96.351,96.24,12.46]
[1646078897729,1.5144612,96.35,96.24,12.46]
[1646078897929,1.5144612,96.35,96.241,2.74678921]
[1646078898130,103.84232454,96.356,96.241,2.74678921]
[1646078898131,1.37311032,96.355,96.241,2.74678921]
[1646078898929,1.37311032,96.355,96.241,106.74678921]
[1646078899130,1.37311032,96.355,96.241,2.74678921]
[1646078899328,1.37311032,96.355,96.242,2.74678921]
[1646078899929,1.37311032,96.355,96.242,5.71337035]
[1646078900330,1.37311032,96.355,96.243,2.74678921]
[1646078900933,1.37311032,96.355,96.246,2.4146707]
[1646078901133,1.37311032,96.355,96.26,12.46]
[1646078902332,1.37311032,96.355,96.261,2.74678921]
[1646078902534,1.37311032,96.355,96.261,106.74678921]
[1646078902732,103.84232454,96.356,96.261,106.74678921]
[1646078902932,103.84232454,96.356,96.262,5.16822302]
[1646078903332,103.84232454,96.356,96.263,2.74678921]
[1646078905334,48.155,96.356,96.263,2.74678921]
[1646078906334,43.7166356,96.355,96.263,2.74678921]
[1646078907134,48.155,96.356,96.263,2.74678921]
[1646078908141,49.79110424,96.372,96.265,104.0]
[1646078908444,49.29110424,96.372,96.282,2.32539808]
[1646078908839,49.29110424,96.372,96.292,2.41916174]
[1646078909241,24.5413,96.388,96.293,2.74678921]
[1646078910041,48.7021,96.396,96.293,2.74678921]
[1646078910243,58.91261174,96.395,96.293,2.74678921]
[1646078910844,1.81912442,96.394,96.293,2.74678921]
[1646078915549,2.62858948,96.393,96.29,12.46]
[1646078915747,30.00504272,96.393,96.29,12.46]
[1646078915948,129.75613119,96.392,96.29,12.46]
[1646078916148,63.8394889,96.391,96.29,12.46]
[1646078916348,62.39,96.389,96.27,12.46]
[1646078916547,62.39,96.377,96.27,12.46]
[1646078916748,62.39,96.375,96.27,12.46]
[1646078916949,104.0,96.372,96.27,12.46]
[1646078917148,62.39,96.367,96.27,12.46]
[1646078917451,104.0,96.352,96.25,12.46]
[1646078917648,1.39880133,96.349,96.25,12.46]
[1646078919251,63.78880133,96.349,96.25,12.46]
[1646078919450,104.0,96.344,96.207,5.403473]
[1646078919651,159.20179741,96.332,96.22,12.46]
[1646078919851,1.5422991,96.331,96.22,12.46]
[1646078921653,105.5422991,96.331,96.22,12.46]
[1646078921855,2.21827427,96.33,96.22,12.46]
[1646078922053,3.80568474,96.33,96.22,12.46]
[1646078924957,166.39,96.318,96.22,12.46]
[1646078925159,62.39,96.314,96.22,12.46]
[1646078925359,1.6307521,96.313,96.22,12.46]
[1646078927361,104.0,96.302,96.197,10.85382961]
[1646078927560,57.15195678,96.299,96.2,12.46]
[1646078927759,1.41840765,96.298,96.2,12.46]
[1646078927973,1.41840765,96.298,96.21,12.46]
[1646078928159,24.2666,96.317,96.211,107.09068839]
[1646078928359,1.51225157,96.349,96.212,2.29057656]
[1646078928560,1.51225157,96.349,96.221,104.0]
[1646078928759,1.4595022,96.354,96.231,104.0]
[1646078928960,44.44724234,96.348,96.24,12.46]
[1646078929160,1.65401116,96.347,96.24,12.46]
[1646078929560,1.7469023,96.346,96.241,2.74678921]
[1646078936273,105.7469023,96.346,96.241,2.74678921]
[1646078936475,107.91400214,96.346,96.241,2.74678921]
[1646078936675,1.7344126,96.345,96.241,2.74678921]
[1646078937074,2.74678921,96.344,96.241,2.74678921]
[1646078937275,1.7344126,96.345,96.241,2.74678921]
[1646078938475,1.7344126,96.345,96.241,106.74678921]
[1646078938876,1.7344126,96.345,96.242,2.74678921]
[1646078939677,23.9448,96.347,96.243,104.0]
[1646078940075,23.9448,96.347,96.244,5.75555489]
[1646078940275,25.42393738,96.347,96.244,5.75555489]
[1646078940483,25.42393738,96.347,96.245,2.74678921]
[1646078940674,25.42393738,96.347,96.26,12.46]
[1646078941074,25.42393738,96.347,96.261,2.74678921]
[1646078941689,23.9448,96.347,96.261,2.74678921]
[1646078941989,24.80739984,96.381,96.261,2.74678921]
[1646078941990,1.43835995,96.38,96.262,2.80950778]
[1646078942189,49.94765995,96.38,96.262,2.80950778]
[1646078942388,1.76561168,96.379,96.264,104.0]
[1646078942592,48.5093,96.38,96.265,2.84773842]
[1646078942789,55.12001012,96.378,96.281,104.0]
[1646078942989,55.12001012,96.378,96.282,3.034117]
[1646078943189,48.5093,96.38,96.282,3.034117]
[1646078943393,1.83534872,96.431,96.282,5.78090621]
[1646078943590,0.41,96.522,96.282,5.78090621]
[1646078943591,49.3134,96.404,96.284,2.6444559]
[1646078943990,49.3134,96.404,96.285,2.74678921]
[1646078944190,54.21760479,96.403,96.285,2.74678921]
[1646078944390,54.21760479,96.403,96.287,104.0]
[1646078944592,54.21760479,96.403,96.301,104.0]
[1646078944990,54.21760479,96.403,96.302,2.74678921]
[1646078946200,1.47858101,96.402,96.302,2.74678921]
[1646078947392,16.77674388,96.401,96.302,2.74678921]
[1646078947592,1.60689124,96.4,96.302,2.74678921]
[1646078948393,1.60689124,96.4,96.3,12.46]
[1646078948597,120.77857735,96.399,96.3,12.46]
[1646078948792,1.74374752,96.398,96.3,12.46]
[1646078948991,18.52232487,96.398,96.3,12.46]
[1646078949196,1.8430977,96.397,96.3,12.46]
[1646078949397,1.69070354,96.396,96.3,12.46]
[1646078949797,16.77857735,96.395,96.3,12.46]
[1646078949998,1.48250752,96.394,96.3,12.46]
[1646078950201,1.48250752,96.394,96.301,2.74678921]
[1646078950698,1.71901892,96.392,96.301,2.74678921]
[1646078951201,54.21760479,96.403,96.301,2.74678921]
[1646078951202,1.50370312,96.402,96.301,2.74678921]
[1646078953299,54.21760479,96.403,96.301,2.74678921]
[1646078953501,54.21760479,96.403,96.301,5.42050781]
[1646078953700,54.21760479,96.403,96.301,5.32236299]
[1646078953899,54.21760479,96.403,96.302,2.74678921]
[1646078955400,54.21760479,96.403,96.303,4.151]
[1646078955800,1.49859118,96.402,96.304,2.74678921]
[1646078958303,1.50746212,96.402,96.304,2.74678921]
[1646078959104,1.50746212,96.402,96.305,4.151]
[1646078959305,1.50746212,96.402,96.31,12.46]
[1646078959704,1.50746212,96.402,96.311,2.74678921]
[1646078961108,54.21760479,96.403,96.311,2.74678921]
[1646078961309,54.21760479,96.403,96.311,6.89778921]
[1646078961706,54.21760479,96.403,96.312,2.74678921]
[1646078961906,54.21760479,96.403,96.313,4.151]
[1646078962306,54.21760479,96.403,96.314,2.74678921]
[1646078962605,54.21760479,96.403,96.315,4.151]
[1646078963007,54.21760479,96.403,96.316,2.74678921]
[1646078963205,54.21760479,96.403,96.33,12.46]
[1646078963607,54.21760479,96.403,96.331,2.74678921]
[1646078964410,1.7643859,96.428,96.331,106.74678921]
[1646078964612,24.1827,96.43,96.332,3.05061316]
[1646078964909,24.1827,96.43,96.334,2.4107874]
[1646078965108,23.9293,96.429,96.335,4.15]
[1646078965310,59.00762316,96.428,96.336,106.98704519]
[1646078965510,59.00762316,96.428,96.35,12.46]
[1646078965911,59.00762316,96.428,96.351,2.74678921]
[1646078967515,1.53496426,96.427,96.351,2.74678921]
[1646078967912,1.53496426,96.427,96.351,18.59808921]
[1646078968113,1.53496426,96.427,96.351,2.74678921]
[1646078969514,59.00762316,96.428,96.351,2.74678921]
[1646078970215,1.85797001,96.427,96.351,2.74678921]
[1646078971015,59.00762316,96.428,96.351,2.74678921]
[1646078971620,1.78513356,96.427,96.35,12.46]
[1646078972616,1.78513356,96.427,96.33,2.74678921]
[1646078972819,1.78513356,96.427,96.33,15.20678921]
[1646078973017,105.78513356,96.427,96.33,15.20678921]
[1646078973217,2.0757956,96.426,96.33,12.46]
[1646078973618,104.0,96.423,96.33,12.46]
[1646078973820,2.74678921,96.425,96.33,12.46]
[1646078973821,104.0,96.411,96.33,12.46]
[1646078974018,1.62035708,96.408,96.314,15.7289]
[1646078975220,1.62035708,96.408,96.315,4.151]
[1646078976020,166.39,96.403,96.315,4.151]
[1646078976222,1.52895735,96.402,96.315,4.151]
[1646078976520,3.26802546,96.402,96.31,12.46]
[1646078976734,1.79400417,96.409,96.31,12.46]
[1646078977120,1.79400417,96.409,96.311,2.74678921]
[1646078979724,1.79400417,96.409,96.311,4.151]
[1646078980327,1.79400417,96.409,96.31,12.46]
[1646078981935,105.79400417,96.409,96.31,12.46]
[1646078982134,166.39,96.403,96.291,10.84393738]
[1646078982333,1.71691907,96.402,96.291,10.84393738]
[1646078982532,1.71691907,96.402,96.29,12.46]
[1646078982733,2.16709984,96.401,96.29,28.0054]
[1646078982931,2.16709984,96.401,96.291,2.74678921]
[1646078983332,1.71691907,96.402,96.291,2.74678921]
[1646078983533,1.43840283,96.409,96.291,2.74678921]
[1646078984338,1.43840283,96.409,96.291,106.74678921]
[1646078984743,1.43840283,96.409,96.292,2.74678921]
[1646078990144,1.43840283,96.409,96.292,5.36436449]
[1646078990343,1.43840283,96.409,96.292,120.40336755]
[1646078990544,1.43840283,96.409,96.293,5.0551697]
[1646078990843,1.51612953,96.409,96.294,2.74678921]
[1646078992050,1.51612953,96.409,96.295,104.0]
[1646078992252,1.51612953,96.409,96.31,12.46]
[1646078992651,1.51612953,96.409,96.311,2.74678921]
[1646078994356,1.51612953,96.409,96.311,18.14988921]
[1646078994656,1.51612953,96.409,96.312,2.74678921]
[1646078995657,105.51612953,96.409,96.312,2.74678921]
[1646078995859,1.78049817,96.408,96.312,2.74678921]
[1646078997465,2.16709984,96.407,96.296,2.74678921]
[1646078997663,62.39,96.403,96.28,27.8622]
[1646078997862,162.49450882,96.392,96.28,27.8622]
[1646078998073,1.6487239,96.391,96.28,27.8622]
[1646078998672,128.7538,96.39,96.28,27.8622]
[1646078998872,1.81807934,96.389,96.28,27.8622]
[1646078999276,62.39,96.383,96.263,5.40551646]
[1646078999475,104.0,96.384,96.263,5.40551646]
[1646078999476,104.0,96.368,96.263,5.40551646]
[1646078999675,24.3602,96.367,96.254,15.4365]
[1646078999977,1.57544954,96.366,96.26,12.46]
[1646079000175,1.57544954,96.366,96.254,18.18328921]
[1646079000674,166.39,96.36,96.254,18.18328921]
[1646079000874,1.62472867,96.359,96.254,2.74678921]
[1646079001076,62.39,96.35,96.25,12.46]
[1646079001274,166.39,96.343,96.23,12.46]
[1646079001478,1.44464506,96.342,96.225,2.74678921]
[1646079002679,1.44464506,96.342,96.227,104.0]
[1646079002878,1.44464506,96.342,96.24,12.46]
[1646079003280,1.44464506,96.342,96.241,104.0]
[1646079003480,52.19278699,96.345,96.241,117.7116375]
[1646079003681,52.19278699,96.345,96.242,16.25788099]
[1646079003879,52.19278699,96.345,96.25,12.46]
[1646079004480,52.19278699,96.345,96.251,2.74678921]
[1646079004683,52.19278699,96.345,96.251,106.74678921]
[1646079005093,52.19278699,96.345,96.25,12.46]
[1646079005094,52.19278699,96.345,96.253,104.0]
[1646079005284,52.19278699,96.345,96.254,2.87221692]
[1646079005484,52.19278699,96.345,96.254,2.74678921]
[1646079005684,52.19278699,96.345,96.25,12.46]
[1646079005685,1.73232753,96.344,96.25,12.46]
[1646079007483,52.19278699,96.345,96.25,15.20678921]
[1646079008484,1.67651218,96.344,96.25,12.46]
[1646079009384,105.67651218,96.344,96.25,12.46]
[1646079009587,1.50429809,96.343,96.229,5.40807329]
[1646079009784,1.50429809,96.343,96.23,12.46]
[1646079010187,1.50429809,96.343,96.23,15.20678921]
[1646079010384,1.50429809,96.343,96.231,107.08689628]
[1646079010584,1.50429809,96.343,96.232,2.8323534]
[1646079010784,52.19278699,96.345,96.233,104.0]
[1646079010985,52.19278699,96.345,96.234,3.07737298]
[1646079011387,52.19278699,96.345,96.236,2.7749764]
[1646079011586,52.19278699,96.345,96.251,104.0]
[1646079011788,52.19278699,96.345,96.252,2.87031044]
[1646079012190,24.6915,96.35,96.253,104.0]
[1646079012388,24.6915,96.35,96.255,104.0]
[1646079012589,24.6915,96.35,96.257,104.0]
[1646079012790,24.6915,96.35,96.27,12.46]
[1646079013190,44.31179084,96.349,96.27,12.46]
[1646079013391,44.31179084,96.349,96.271,104.0]
[1646079013791,24.6915,96.35,96.271,104.0]
[1646079013991,24.6915,96.35,96.27,12.46]
[1646079014892,57.89820154,96.349,96.27,12.46]
[1646079017502,1.77485387,96.348,96.255,4.152]
[1646079017700,1.77485387,96.348,96.25,12.46]
[1646079020305,168.16485387,96.348,96.25,12.46]
[1646079020515,168.16485387,96.348,96.23,4.152]
[1646079020516,1.47985834,96.347,96.23,4.152]
[1646079020709,2.63923708,96.347,96.22,12.46]
[1646079020910,2.05954771,96.347,96.22,12.46]
[1646079021109,1.58741047,96.346,96.22,12.46]
[1646079021309,2.16709984,96.346,96.22,12.46]
[1646079022109,24.53402142,96.345,96.218,4.154]
[1646079022312,24.53402142,96.345,96.198,2.74678921]
[1646079022313,166.39,96.329,96.198,2.74678921]
[1646079022512,166.39,96.327,96.198,2.74678921]
[1646079022712,1.62172337,96.326,96.198,2.74678921]
[1646079022912,1.12172337,96.326,96.198,2.74678921]
[1646079023115,1.12172337,96.326,96.2,12.46]
[1646079023512,2.16709984,96.325,96.201,4.155]
[1646079024526,4.155,96.324,96.201,4.155]
[1646079024725,166.39,96.309,96.185,4.155]
[1646079024926,166.39,96.305,96.185,4.155]
[1646079025125,1.43994112,96.304,96.168,4.156]
[1646079025325,166.39,96.289,96.167,2.74678921]
[1646079025525,166.39,96.285,96.167,2.74678921]
[1646079025730,1.74399527,96.284,96.159,4.156]
[1646079025925,166.39,96.267,96.15,12.46]
[1646079026125,167.96227614,96.265,96.15,12.46]
[1646079026327,1.71125086,96.264,96.15,12.46]
[1646079027127,3.45031897,96.264,96.15,12.46]
[1646079027530,1.71125086,96.264,96.15,12.46]
[1646079028829,1.71125086,96.264,96.151,4.157]
[1646079029729,1.71125086,96.264,96.15,12.46]
[1646079030131,1.71125086,96.264,96.15,24.83815574]
[1646079030330,1.71125086,96.264,96.151,4.157]
[1646079030732,104.0,96.263,96.151,4.157]
[1646079030931,1.57970979,96.262,96.151,4.157]
[1646079031530,1.57970979,96.262,96.151,16.53515574]
[1646079031729,1.57970979,96.262,96.151,12.37815574]
[1646079031932,1.57970979,96.262,96.152,2.74678921]
[1646079032931,50.0,96.25,96.152,2.74678921]
[1646079033131,93.78193668,96.249,96.152,2.74678921]
[1646079033334,1.64032249,96.248,96.152,2.74678921]
[1646079033531,1.64032249,96.248,96.151,12.37815574]
[1646079036236,105.64032249,96.248,96.151,12.37815574]
[1646079036436,105.64032249,96.248,96.15,12.46]
[1646079036636,1.81165051,96.247,96.15,12.46]
[1646079037036,93.78193668,96.249,96.151,15.12494495]
[1646079037437,93.78193668,96.249,96.153,2.96273051]
[1646079037837,93.78193668,96.249,96.154,35.31858955]
[1646079038037,93.78193668,96.249,96.155,2.88233209]
[1646079038238,93.78193668,96.249,96.17,12.46]
[1646079039238,93.78193668,96.249,96.171,2.74678921]
[1646079040237,93.78193668,96.249,96.171,5.12731872]
[1646079040638,93.78193668,96.249,96.172,2.74678921]
[1646079041040,93.78193668,96.249,96.172,15.21161162]
[1646079041238,93.78193668,96.249,96.173,2.88330752]
[1646079041440,93.78193668,96.249,96.173,5.63009673]
[1646079041640,93.78193668,96.249,96.174,2.74678921]
[1646079042440,48.4823,96.249,96.174,2.74678921]
[1646079042641,47.9918,96.25,96.175,140.19739634]
[1646079042840,47.9918,96.25,96.176,2.27660614]
[1646079043041,47.9918,96.25,96.191,104.0]
[1646079043340,47.9918,96.25,96.192,2.69277972]
[1646079043543,47.9918,96.25,96.192,39.04220555]
[1646079043739,47.9918,96.25,96.193,41.78799709]
[1646079043939,47.9918,96.25,96.194,2.33090785]
[1646079044140,47.9918,96.25,96.195,2.67768932]
[1646079044340,47.9918,96.25,96.195,41.71989487]
[1646079044541,47.9918,96.25,96.196,62.45941755]
[1646079044840,47.9918,96.25,96.21,12.46]
[1646079045341,47.9918,96.25,96.211,16.30732095]
[1646079045740,47.9918,96.25,96.212,2.74678921]
[1646079046744,47.9918,96.25,96.213,13.56053174]
[1646079047043,48.4795,96.326,96.213,16.0503357]
[1646079047044,47.9918,96.302,96.213,16.0503357]
[1646079047245,47.9918,96.302,96.214,28.264056]
[1646079047446,47.9918,96.302,96.215,2.42757766]
[1646079047647,47.15088234,96.301,96.216,2.78795491]
[1646079047847,47.15088234,96.301,96.23,12.46]
[1646079048446,47.15088234,96.301,96.231,2.74678921]
[1646079049246,26.10021404,96.3,96.231,2.74678921]
[1646079049546,1.81365171,96.299,96.231,2.74678921]
[1646079051046,24.4215,96.3,96.231,2.74678921]
[1646079054352,25.81822906,96.3,96.231,2.74678921]
[1646079055153,24.4215,96.3,96.231,2.74678921]
[1646079055354,1.38261962,96.299,96.231,2.74678921]
[1646079059365,1.38261962,96.299,96.207,2.74678921]
[1646079059865,1.38261962,96.299,96.2,25.8376743]
[1646079060265,1.38261962,96.299,96.201,2.74678921]
[1646079060465,1.38261962,96.299,96.201,27.54242867]
[1646079060667,1.38261962,96.299,96.202,24.79563946]
[1646079060866,1.38261962,96.299,96.202,27.54242867]
[1646079061065,1.38261962,96.299,96.203,2.74678921]
[1646079061772,24.4215,96.3,96.204,24.79563946]
[1646079062170,24.4215,96.3,96.205,2.74678921]
[1646079062571,24.4215,96.3,96.205,16.12446351]
[1646079062773,24.4215,96.3,96.206,3.06018632]
[1646079062973,24.4215,96.3,96.21,12.46]
[1646079063373,24.4215,96.3,96.21,25.8376743]
[1646079063573,24.4215,96.3,96.211,5.71339411]
[1646079063974,24.4215,96.3,96.212,2.74678921]
[1646079064176,24.4215,96.3,96.212,5.45278316]
[1646079064575,24.4215,96.3,96.213,2.74678921]
[1646079066994,24.4215,96.3,96.214,36.1125589]
[1646079067193,24.4215,96.3,96.215,2.57808682]
[1646079067394,24.4215,96.3,96.23,12.46]
[1646079068598,24.4215,96.3,96.231,2.74678921]
[1646079071100,27.9918,96.302,96.231,2.74678921]
[1646079071302,27.9918,96.302,96.233,104.0]
[1646079071501,27.9918,96.302,96.234,2.74762601]
[1646079071702,27.9918,96.302,96.235,104.0]
[1646079071904,27.9918,96.302,96.236,2.79159284]
[1646079072101,27.9918,96.302,96.25,12.46]
[1646079072302,27.9918,96.302,96.251,4.154]
[1646079072501,27.9918,96.302,96.251,6.90078921]
[1646079072700,27.9918,96.302,96.251,2.74678921]
[1646079072900,27.9918,96.302,96.252,2.74678921]
[1646079073502,27.9918,96.302,96.252,16.12446351]
[1646079073701,27.9918,96.302,96.252,42.98520144]
[1646079073902,27.9918,96.302,96.253,2.74678921]
[1646079074302,27.9918,96.302,96.254,26.86073793]
[1646079074702,27.9918,96.302,96.255,2.74678921]
[1646079075104,27.9918,96.302,96.255,29.60752714]
[1646079075504,27.9918,96.302,96.256,2.74678921]
[1646079075705,27.9918,96.302,96.27,12.46]
[1646079077305,27.9918,96.302,96.271,2.74678921]
[1646079078706,27.9918,96.302,96.27,12.46]
[1646079078907,46.21092174,96.301,96.27,12.46]
[1646079079805,27.9918,96.302,96.27,12.46]
[1646079080705,53.069613,96.301,96.27,12.46]
[1646079080906,27.9918,96.302,96.27,12.46]
[1646079080907,27.9918,96.302,96.271,2.74678921]
[1646079082809,27.9918,96.302,96.272,26.86073793]
[1646079083210,23.7438,96.302,96.273,2.74678921]
[1646079087320,23.7438,96.302,96.274,26.86073793]
[1646079087720,23.7438,96.302,96.275,2.74678921]
[1646079087920,12.3018,96.302,96.29,12.46]
[1646079088321,12.3018,96.302,96.291,2.74678921]
[1646079088623,12.3018,96.302,96.292,0.04182078]
[1646079089021,12.3018,96.302,96.293,2.74678921]
[1646079090722,12.3018,96.302,96.292,0.04182078]
[1646079092824,12.3018,96.302,96.293,2.74678921]
[1646079095823,12.3018,96.302,96.294,26.86073793]
[1646079096025,12.3018,96.302,96.294,51.65637739]
[1646079096225,24.8948,96.364,96.295,132.74678921]
[1646079096424,24.8948,96.364,96.3,12.46]
[1646079096627,60.59618365,96.363,96.3,12.46]
[1646079096828,60.59618365,96.363,96.301,29.60752714]
[1646079097227,60.59618365,96.363,96.302,29.60752714]
[1646079097628,1.81811805,96.362,96.303,2.74678921]
[1646079098127,1.81811805,96.362,96.3,12.46]
[1646079100431,1.62272404,96.361,96.278,2.74678921]
[1646079100628,1.62272404,96.361,96.265,24.79563946]
[1646079101030,1.62272404,96.361,96.266,2.74678921]
[1646079101432,1.62272404,96.361,96.266,27.54242867]
[1646079101831,1.62272404,96.361,96.27,12.46]
[1646079102234,1.62272404,96.361,96.271,50.63470157]
[1646079102530,1.62272404,96.361,96.272,2.74678921]
[1646079102740,1.62272404,96.361,96.272,27.54242867]
[1646079103142,1.62272404,96.361,96.273,2.74678921]
[1646079103940,60.59618365,96.363,96.274,47.88791236]
[1646079104341,60.59618365,96.363,96.275,50.63470157]
[1646079104543,60.59618365,96.363,96.29,12.46]
[1646079104941,1.67945889,96.362,96.29,12.46]
[1646079105942,1.67945889,96.362,96.29,28.3201]
[1646079109561,1.67945889,96.362,96.276,27.54242867]
[1646079109764,1.67945889,96.362,96.276,2.74678921]
[1646079109963,1.67945889,96.362,96.28,12.46]
[1646079111567,1.67945889,96.362,96.27,12.46]
[1646079112767,1.6251806,96.361,96.27,12.46]
[1646079113768,4.152,96.36,96.27,12.46]
[1646079113971,62.39,96.359,96.243,4.152]
[1646079114171,62.39,96.349,96.25,12.46]
[1646079114371,4.152,96.358,96.24,15.6804]
[1646079114372,104.0,96.34,96.24,15.6804]
[1646079114769,1.86182817,96.339,96.23,12.46]
[1646079114969,1.86182817,96.339,96.23,27.7318]
[1646079115770,1.86182817,96.339,96.23,12.46]
[1646079115972,104.0,96.326,96.23,12.46]
[1646079116172,59.83775507,96.322,96.23,12.46]
[1646079116369,23.5145,96.321,96.23,12.46]
[1646079116570,1.49775233,96.32,96.23,12.46]
[1646079116870,105.49775233,96.32,96.23,12.46]
[1646079117071,1.6871297,96.319,96.23,12.46]
[1646079118075,3.83209979,96.319,96.215,4.154]
[1646079118374,3.83209979,96.319,96.213,11.87372464]
[1646079118580,1.6871297,96.319,96.213,11.87372464]
[1646079118781,1.6871297,96.319,96.214,4.155]
[1646079119175,1.6871297,96.319,96.215,22.54230613]
[1646079119375,1.6871297,96.319,96.22,12.46]
[1646079121177,1.6871297,96.319,96.221,2.74678921]
[1646079121379,1.6871297,96.319,96.221,25.28909534]
[1646079121577,1.6871297,96.319,96.222,43.78837103]
[1646079121777,1.6871297,96.319,96.222,58.40888488]
[1646079122077,1.6871297,96.319,96.223,58.40888488]
[1646079122477,1.6871297,96.319,96.224,58.40888488]
[1646079122878,1.6871297,96.319,96.225,34.41603077]
[1646079123278,1.6871297,96.319,96.226,34.41603077]
[1646079123478,1.6871297,96.319,96.23,12.46]
[1646079123881,1.6871297,96.319,96.231,11.87372464]
[1646079124179,1.6871297,96.319,96.231,14.62051385]
[1646079124379,1.6871297,96.319,96.232,46.53516024]
[1646079124578,23.3673,96.32,96.232,58.40888488]
[1646079124779,23.3673,96.32,96.233,22.54230613]
[1646079125381,1.64395196,96.319,96.233,22.54230613]
[1646079125583,1.64395196,96.319,96.232,11.87372464]
[1646079126084,1.64395196,96.319,96.217,2.74678921]
[1646079126386,4.155,96.318,96.216,4.155]
[1646079126584,104.0,96.315,96.216,4.155]
[1646079126783,167.74748442,96.313,96.216,4.155]
[1646079126983,1.71056497,96.312,96.216,4.155]
[1646079127385,104.0,96.311,96.216,4.155]
[1646079127584,104.0,96.309,96.216,4.155]
[1646079127784,46.94675044,96.307,96.216,4.155]
[1646079127984,1.60681825,96.306,96.216,4.155]
[1646079128185,25.72671825,96.306,96.216,4.155]
[1646079128384,1.513721,96.305,96.216,4.155]
[1646079129189,104.0,96.303,96.216,4.155]
[1646079129389,104.0,96.301,96.216,4.155]
[1646079129587,1.75174458,96.3,96.216,4.155]
[1646079131491,56.515942,96.292,96.216,4.155]
[1646079131688,104.0,96.291,96.216,4.155]
[1646079131893,1.39562194,96.29,96.216,4.155]
[1646079132094,23.1499,96.29,96.216,4.155]
[1646079132294,1.42921736,96.289,96.216,4.155]
[1646079132494,23.1499,96.29,96.216,4.155]
[1646079135121,1.66439935,96.289,96.216,4.155]
[1646079135418,1.87243634,96.288,96.216,4.155]
[1646079137721,23.1499,96.29,96.216,4.155]
[1646079139423,23.1499,96.29,96.217,22.54230613]
[1646079139623,23.1499,96.29,96.22,12.46]
[1646079140023,23.1499,96.29,96.221,22.54230613]
[1646079140223,23.1499,96.29,96.221,38.54948665]
[1646079140423,23.1499,96.29,96.221,16.00718052]
[1646079140624,23.1499,96.29,96.221,13.26039131]
[1646079144625,23.1499,96.29,96.221,35.80267158]
[1646079145528,1.47133936,96.289,96.207,13.26038906]
[1646079145729,1.4879838,96.288,96.207,13.26038906]
[1646079146327,1.5296772,96.287,96.207,13.26038906]
[1646079146528,104.0,96.286,96.192,17.41538906]
[1646079146828,104.0,96.272,96.192,4.155]
[1646079147031,62.39,96.269,96.163,4.156]
[1646079147229,62.39,96.261,96.166,4.156]
[1646079147428,104.0,96.258,96.161,4.157]
[1646079147631,104.0,96.242,96.161,4.157]
[1646079147833,104.0,96.24,96.161,4.157]
[1646079148030,104.0,96.238,96.161,4.157]
[1646079148230,1.81676896,96.237,96.15,4.157]
[1646079149533,1.81676896,96.237,96.142,4.158]
[1646079150732,1.81676896,96.237,96.142,24.62030613]
[1646079152635,1.81676896,96.237,96.142,20.46230613]
[1646079153537,4.158,96.236,96.142,20.46230613]
[1646079154239,4.158,96.236,96.143,3.05562572]
[1646079154442,51.85767046,96.239,96.143,5.80241493]
[1646079154638,51.85767046,96.239,96.144,5.37623921]
[1646079155038,51.85767046,96.239,96.146,2.49241741]
[1646079155437,51.85767046,96.239,96.15,12.46]
[1646079155838,51.85767046,96.239,96.152,2.49576601]
[1646079156840,51.85767046,96.239,96.153,2.74678921]
[1646079157240,51.85767046,96.239,96.153,23.20909534]
[1646079157641,51.85767046,96.239,96.154,5.10059009]
[1646079159266,51.85767046,96.239,96.154,2.74678921]
[1646079159450,51.85767046,96.239,96.15,24.48534602]
[1646079159649,1.71142297,96.238,96.15,24.48534602]